bitfinex/quotes_SOLUSD_20230112
["timestamp","ask_amount","ask_price","bid_price","bid_amount"]
[1673566154602,10.0,16.537,16.52,12.14410738]
[1673566154811,38.92,16.536,16.52,12.14410738]
[1673566155021,10.0,16.535,16.52,12.14410738]
[1673566155353,1.92,16.534,16.52,12.14410738]
[1673566156092,10.0,16.533,16.52,12.14410738]
[1673566156276,1.92,16.532,16.521,17.0]
[1673566156491,1.92,16.532,16.52,12.14410738]
[1673566157036,11.92,16.532,16.52,12.14410738]
[1673566157966,11.92,16.532,16.521,17.0]
[1673566158189,11.92,16.532,16.517,108.7838]
[1673566158388,57.29,16.532,16.518,20.0]
[1673566158599,11.92,16.532,16.518,20.0]
[1673566158814,16.44,16.53,16.518,20.0]
[1673566159033,10.0,16.529,16.518,20.0]
[1673566159222,17.0,16.528,16.512,20.0]
[1673566159437,62.38,16.528,16.512,20.0]
[1673566159645,1.92,16.527,16.512,20.0]
[1673566159850,1.92,16.527,16.512,32.14410738]
[1673566160081,11.92,16.527,16.512,32.14410738]
[1673566160503,10.0,16.526,16.512,32.14410738]
[1673566160822,1.92,16.525,16.5,16.54]
[1673566161030,16.49,16.52,16.5,16.54]
[1673566161249,0.96,16.519,16.501,12.14410738]
[1673566161438,1.92,16.519,16.501,12.14410738]
[1673566161854,1.92,16.519,16.501,159.64404195]
[1673566162198,1.92,16.519,16.503,10.0]
[1673566162408,1.92,16.519,16.504,20.0]
[1673566162598,1.92,16.519,16.504,32.14410738]
[1673566163022,1.92,16.519,16.505,12.14410738]
[1673566163231,10.0,16.52,16.505,12.14410738]
[1673566163441,45.4,16.521,16.505,12.14410738]
[1673566163771,45.4,16.521,16.506,20.96]
[1673566163971,10.0,16.522,16.507,17.0]
[1673566164295,10.0,16.522,16.508,20.0]
[1673566164508,10.0,16.522,16.509,17.0]
[1673566164833,1.92,16.521,16.509,17.0]
[1673566168496,1.92,16.521,16.501,147.49993457]
[1673566168715,1.92,16.521,16.501,108.6866]
[1673566168716,128.18,16.52,16.501,108.6866]
[1673566168919,10.96,16.519,16.501,108.6866]
[1673566169132,37.96,16.518,16.501,108.6866]
[1673566169334,0.96,16.517,16.501,108.6866]
[1673566169542,10.96,16.517,16.501,108.6866]
[1673566169750,66.37,16.516,16.501,120.83070738]
[1673566169965,27.96,16.515,16.501,108.6866]
[1673566170283,161.3252,16.515,16.497,111.1874]
[1673566170509,10.96,16.514,16.497,111.1874]
[1673566170690,0.96,16.513,16.497,111.1874]
[1673566170902,0.96,16.512,16.498,10.0]
[1673566171105,114.9452,16.515,16.498,10.0]
[1673566171333,16.51,16.52,16.5,16.58]
[1673566171548,113.7542,16.523,16.5,83.03]
[1673566171743,113.7542,16.523,16.501,46.28000123]
[1673566171970,113.7542,16.523,16.502,27.0]
[1673566172165,113.7542,16.523,16.503,20.0]
[1673566172491,113.7542,16.523,16.504,17.0]
[1673566172695,113.7542,16.523,16.505,20.0]
[1673566173110,62.4,16.522,16.504,20.0]
[1673566173316,17.0,16.522,16.503,20.0]
[1673566173532,16.44,16.52,16.503,20.0]
[1673566173857,10.0,16.518,16.497,111.1874]
[1673566174078,0.96,16.517,16.498,144.64650738]
[1673566174278,0.96,16.516,16.498,144.64650738]
[1673566174488,0.96,16.516,16.499,12.14410738]
[1673566174914,10.96,16.516,16.499,12.14410738]
[1673566175118,0.96,16.515,16.499,12.14410738]
[1673566175325,114.2629,16.515,16.499,12.14410738]
[1673566175537,0.96,16.514,16.499,12.14410738]
[1673566175749,0.96,16.514,16.5,17.0]
[1673566175959,10.96,16.514,16.5,17.0]
[1673566176171,0.96,16.513,16.498,112.5024]
[1673566177338,10.96,16.513,16.498,124.64650738]
[1673566177527,0.96,16.512,16.498,124.64650738]
[1673566178152,0.96,16.512,16.499,12.14410738]
[1673566178367,0.96,16.512,16.5,17.0]
[1673566179003,0.96,16.512,16.5,12.14410738]
[1673566179219,0.96,16.512,16.498,112.5024]
[1673566179742,0.96,16.512,16.499,12.14410738]
[1673566180375,0.96,16.512,16.5,17.0]
[1673566180702,0.96,16.512,16.5,29.14410738]
[1673566180894,10.0,16.514,16.5,29.14410738]
[1673566181104,9.9276402,16.514,16.5,29.14410738]
[1673566181312,113.3029,16.515,16.5,29.14410738]
[1673566182158,45.41,16.518,16.5,45.72410738]
[1673566182371,45.38,16.527,16.501,21.92]
[1673566182576,10.0,16.523,16.502,10.0]
[1673566182783,10.0,16.523,16.503,1.92]
[1673566182989,10.0,16.523,16.503,51.06410738]
[1673566183204,10.0,16.523,16.504,12.14410738]
[1673566183538,10.0,16.523,16.505,18.92]
[1673566183734,10.0,16.523,16.505,155.3641]
[1673566183942,10.0,16.523,16.506,32.14410738]
[1673566184168,10.0,16.523,16.506,20.0]
[1673566184382,16.44,16.52,16.506,20.0]
[1673566184564,10.0,16.519,16.5,16.45]
[1673566184774,10.0,16.517,16.498,118.3641]
[1673566184991,20.0,16.516,16.501,12.14410738]
[1673566185305,11.92,16.515,16.498,118.3641]
[1673566185516,121.4027,16.515,16.499,12.14410738]
[1673566185947,55.39,16.525,16.5,16.61]
[1673566186151,164.2459,16.525,16.501,30.0]
[1673566186352,10.0,16.523,16.502,27.96]
[1673566186699,10.0,16.523,16.503,20.96]
[1673566186888,10.0,16.523,16.504,17.96]
[1673566187100,10.0,16.523,16.505,20.0]
[1673566187295,45.4,16.522,16.505,20.0]
[1673566187626,16.58,16.52,16.501,20.0]
[1673566187848,27.0,16.519,16.5,12.14410738]
[1673566188156,10.0,16.517,16.5,12.14410738]
[1673566188352,10.0,16.515,16.5,12.14410738]
[1673566188559,0.96,16.514,16.5,12.14410738]
[1673566188775,0.96,16.513,16.5,12.14410738]
[1673566188978,0.96,16.512,16.501,17.0]
[1673566189409,120.8646,16.515,16.501,17.0]
[1673566189622,0.96,16.514,16.501,29.14410738]
[1673566189834,110.8646,16.515,16.502,1.92]
[1673566190037,183.4277,16.518,16.502,1.92]
[1673566190038,118.0177,16.518,16.502,11.92]
[1673566190253,10.0,16.523,16.503,49.14410738]
[1673566190467,10.0,16.523,16.504,1.92]
[1673566190688,10.0,16.523,16.504,12.14410738]
[1673566190886,10.0,16.523,16.505,51.06410738]
[1673566191101,10.0,16.523,16.506,20.0]
[1673566191316,0.96,16.522,16.506,147.37510738]
[1673566191513,0.96,16.522,16.507,29.14410738]
[1673566191722,10.0,16.523,16.508,20.0]
[1673566191934,10.0,16.523,16.509,17.0]
[1673566192148,110.8563,16.524,16.509,29.14410738]
[1673566192368,396.6,16.526,16.51,14.06410738]
[1673566192765,396.6,16.526,16.511,29.14410738]
[1673566192980,396.6,16.526,16.512,1.92]
[1673566193195,10.0,16.526,16.512,1.92]
[1673566193527,10.0,16.526,16.512,18.92]
[1673566193528,1.92,16.525,16.512,18.92]
[1673566195503,1.92,16.525,16.512,17.96]
[1673566195718,1.92,16.525,16.511,12.14410738]
[1673566196148,21.92,16.525,16.51,16.58]
[1673566196471,10.0,16.524,16.51,28.72410738]
[1673566196784,21.92,16.525,16.511,1.92]
[1673566197391,21.92,16.525,16.511,18.92]
[1673566198481,21.92,16.525,16.51,36.95410738]
[1673566198482,21.92,16.525,16.508,20.0]
[1673566198797,10.0,16.523,16.507,20.0]
[1673566199007,0.96,16.522,16.507,20.0]
[1673566199233,0.96,16.521,16.507,20.0]
[1673566199541,0.96,16.52,16.507,20.0]
[1673566199954,0.96,16.519,16.507,20.0]
[1673566200387,0.96,16.519,16.508,17.0]
[1673566200602,0.96,16.518,16.508,17.0]
[1673566203416,0.96,16.518,16.507,20.0]
[1673566203627,0.96,16.517,16.507,20.0]
[1673566203835,0.96,16.516,16.507,20.0]
[1673566204350,0.96,16.515,16.507,20.0]
[1673566205199,0.96,16.515,16.508,17.0]
[1673566205410,0.96,16.515,16.49,125.03]
[1673566205653,46.38,16.515,16.498,20.0]
[1673566205821,17.96,16.514,16.498,20.0]
[1673566206045,27.96,16.514,16.498,20.0]
[1673566206283,46.38,16.513,16.498,20.0]
[1673566206460,0.96,16.512,16.498,20.0]
[1673566206877,0.96,16.511,16.498,20.0]
[1673566207085,0.96,16.51,16.498,20.0]
[1673566207521,0.96,16.509,16.498,20.0]
[1673566207734,0.96,16.508,16.493,116.5753]
[1673566208135,0.96,16.507,16.493,116.5753]
[1673566208345,0.96,16.506,16.494,10.0]
[1673566208786,0.96,16.505,16.481,10.0]
[1673566208990,0.96,16.505,16.492,20.0]
[1673566209196,0.96,16.504,16.492,20.0]
[1673566209420,0.96,16.504,16.493,10.0]
[1673566209606,0.96,16.504,16.494,20.0]
[1673566210135,0.96,16.503,16.494,20.0]
[1673566210344,0.96,16.503,16.495,17.0]
[1673566210576,0.96,16.503,16.496,20.0]
[1673566211097,24.74,16.51,16.496,20.0]
[1673566211287,1.92,16.509,16.495,20.0]
[1673566211495,18.92,16.509,16.495,20.0]
[1673566212773,20.0,16.508,16.488,110.4295]
[1673566212960,17.0,16.507,16.488,110.4295]
[1673566213174,20.96,16.506,16.488,110.4295]
[1673566213393,0.96,16.505,16.488,110.4295]
[1673566213825,0.96,16.505,16.489,11.79719398]
[1673566214007,27.96,16.505,16.489,11.79719398]
[1673566214233,24.97,16.5,16.482,109.1547]
[1673566214431,24.97,16.5,16.473,10.0]
[1673566214432,17.96,16.499,16.473,10.0]
[1673566214650,193.9696,16.499,16.478,11.79719398]
[1673566215197,10.0,16.498,16.478,11.79719398]
[1673566215504,38.92,16.497,16.48,10.0]
[1673566215706,24.97,16.5,16.48,34.81]
[1673566215921,109.5896,16.504,16.481,20.0]
[1673566216130,109.5896,16.504,16.481,31.79719398]
[1673566216316,109.5896,16.504,16.483,10.0]
[1673566216521,109.5896,16.504,16.484,20.0]
[1673566216745,109.5896,16.504,16.486,10.0]
[1673566216961,109.5896,16.504,16.487,18.92]
[1673566217292,109.5896,16.504,16.488,20.0]
[1673566217503,1.92,16.503,16.488,20.0]
[1673566217702,1.92,16.503,16.487,20.0]
[1673566217909,18.92,16.503,16.487,20.0]
[1673566218131,24.98,16.5,16.487,20.0]
[1673566218331,1.92,16.499,16.487,20.0]
[1673566219396,18.92,16.499,16.487,20.0]
[1673566219593,18.92,16.499,16.484,20.0]
[1673566220005,226.86,16.498,16.48,109.2952]
[1673566220213,37.96,16.497,16.48,109.2952]
[1673566220426,0.96,16.496,16.48,109.2952]
[1673566220661,46.43,16.496,16.48,109.2952]
[1673566220974,17.96,16.495,16.48,109.2952]
[1673566221167,0.96,16.494,16.48,109.2952]
[1673566221379,0.96,16.493,16.471,10.0]
[1673566221588,0.96,16.493,16.474,31.79719398]
[1673566221805,0.96,16.492,16.475,10.0]
[1673566222133,0.96,16.492,16.476,20.0]
[1673566222318,18.75725104,16.499,16.477,10.0]
[1673566222665,24.81,16.5,16.48,24.81]
[1673566222844,24.81,16.5,16.481,10.0]
[1673566223058,24.81,16.5,16.482,20.0]
[1673566223270,113.2617,16.504,16.483,10.96]
[1673566223501,114.8045,16.506,16.484,113.19079252]
[1673566223809,114.8045,16.506,16.486,10.0]
[1673566224013,114.8045,16.506,16.487,1.92]
[1673566224209,114.8045,16.506,16.488,10.0]
[1673566224423,114.8045,16.506,16.489,1.92]
[1673566224629,158.6917,16.509,16.49,24.98]
[1673566224630,45.43,16.509,16.49,24.98]
[1673566224854,45.42,16.514,16.491,18.92]
[1673566225068,45.42,16.514,16.492,20.0]
[1673566225279,45.42,16.514,16.493,11.92]
[1673566225489,45.42,16.514,16.494,20.0]
[1673566225702,45.42,16.514,16.496,10.0]
[1673566225913,0.96,16.513,16.497,37.96]
[1673566226105,0.96,16.512,16.498,0.96]
[1673566226317,0.96,16.511,16.498,0.96]
[1673566226529,0.96,16.51,16.498,0.96]
[1673566226971,55.42,16.514,16.498,0.96]
[1673566228230,1.92,16.513,16.498,0.96]
[1673566230117,1.92,16.513,16.499,0.96]
[1673566232309,1.92,16.513,16.5,25.81]
[1673566232520,1.92,16.513,16.501,0.96]
[1673566233271,45.41,16.516,16.502,0.96]
[1673566233487,1.92,16.515,16.503,0.96]
[1673566236727,1.92,16.515,16.5,24.85]
[1673566236728,11.92,16.515,16.5,24.85]
[1673566236935,17.0,16.514,16.493,10.0]
[1673566237164,10.96,16.513,16.498,20.0]
[1673566237359,10.96,16.513,16.496,31.79719398]
[1673566237360,0.96,16.512,16.496,31.79719398]
[1673566237573,0.96,16.511,16.497,10.0]
[1673566237781,0.96,16.511,16.498,20.0]
[1673566238313,0.96,16.511,16.499,1.92]
[1673566239882,0.96,16.511,16.499,0.96]
[1673566240095,0.96,16.511,16.498,20.0]
[1673566240416,0.96,16.511,16.499,1.92]
[1673566242629,169.0729,16.515,16.499,1.92]
[1673566243053,10.0,16.514,16.499,17.96]
[1673566243267,27.0,16.514,16.499,17.0]
[1673566243467,10.0,16.512,16.499,17.0]
[1673566244710,0.96,16.511,16.499,17.0]
[1673566250181,0.96,16.51,16.499,17.0]
[1673566250625,10.0,16.513,16.499,17.0]
[1673566250827,0.96,16.512,16.499,17.0]
[1673566252502,0.96,16.512,16.498,20.0]
[1673566252820,24.98,16.51,16.49,25.01]
[1673566253038,10.0,16.508,16.49,25.01]
[1673566253226,37.0,16.507,16.49,25.01]
[1673566253437,83.4,16.507,16.49,25.01]
[1673566253662,10.0,16.506,16.49,25.01]
[1673566253861,0.96,16.505,16.49,25.01]
[1673566254925,0.96,16.505,16.491,10.0]
[1673566257340,0.96,16.505,16.492,17.0]
[1673566258695,20.0,16.507,16.492,17.0]
[1673566258905,0.96,16.506,16.493,10.0]
[1673566259116,20.0,16.508,16.494,1.92]
[1673566259326,1.92,16.507,16.494,1.92]
[1673566259536,1.92,16.507,16.494,18.92]
[1673566259980,118.6246,16.509,16.495,10.0]
[1673566260180,118.6246,16.509,16.496,0.96]
[1673566260388,118.6246,16.509,16.495,20.0]
[1673566260596,118.6246,16.509,16.494,20.0]
[1673566261014,118.6246,16.509,16.495,13.71719398]
[1673566261229,118.6246,16.509,16.496,20.0]
[1673566261446,118.6246,16.509,16.497,1.92]
[1673566261848,10.0,16.514,16.497,1.92]
[1673566262065,116.7329,16.515,16.497,119.3493]
[1673566262373,116.7329,16.515,16.5,24.85]
[1673566262586,116.7329,16.515,16.501,1.92]
[1673566262811,116.7329,16.515,16.501,11.92]
[1673566263326,116.7329,16.515,16.502,17.0]
[1673566263947,0.96,16.514,16.502,17.0]
[1673566264158,110.824,16.517,16.503,0.96]
[1673566264378,55.39,16.526,16.504,0.96]
[1673566264585,166.214,16.526,16.505,0.96]
[1673566264803,55.4,16.523,16.506,0.96]
[1673566265427,10.0,16.522,16.506,0.96]
[1673566266497,10.0,16.522,16.507,0.96]
[1673566267872,45.4,16.521,16.507,0.96]
[1673566268395,1.92,16.52,16.507,17.96]
[1673566268585,1.92,16.52,16.508,20.0]
[1673566269020,1.92,16.52,16.509,17.0]
[1673566271445,36.66,16.52,16.486,10.0]
[1673566271636,65.41,16.519,16.5,25.02]
[1673566271847,123.6311,16.518,16.5,25.02]
[1673566272061,20.0,16.517,16.5,25.02]
[1673566272272,0.96,16.516,16.5,25.02]
[1673566272478,1.92,16.516,16.501,10.0]
[1673566273125,1.92,16.516,16.502,1.92]
[1673566274162,20.0,16.517,16.502,1.92]
[1673566274372,0.96,16.516,16.502,1.92]
[1673566274583,0.96,16.516,16.502,18.92]
[1673566278198,0.96,16.516,16.502,18.92]
[1673566280704,45.4,16.521,16.502,18.92]
[1673566281024,1.92,16.52,16.503,21.79719398]
[1673566281224,1.92,16.52,16.504,31.92]
[1673566282908,114.1367,16.523,16.504,31.92]
[1673566283116,114.1367,16.523,16.504,43.71719398]
[1673566283337,114.1367,16.523,16.504,31.92]
[1673566284304,0.96,16.522,16.504,31.92]
[1673566284601,1.92,16.522,16.504,31.92]
[1673566285214,114.1367,16.523,16.504,31.92]
[1673566285436,1.92,16.522,16.504,43.71719398]
[1673566285756,1.92,16.522,16.504,134.09603605]
[1673566286169,1.92,16.522,16.504,122.29884207]
[1673566286496,114.1367,16.523,16.504,134.09603605]
[1673566286704,114.1367,16.523,16.505,17.0]
[1673566287012,114.1367,16.523,16.506,21.92]
[1673566287228,114.1367,16.523,16.507,17.0]
[1673566287431,114.1367,16.523,16.508,21.92]
[1673566287847,102.0603,16.524,16.509,17.0]
[1673566288084,102.0603,16.524,16.51,1.92]
[1673566288703,102.0603,16.524,16.51,36.9]
[1673566288932,102.0603,16.524,16.511,17.0]
[1673566289142,102.0603,16.524,16.512,1.92]
[1673566289336,0.96,16.523,16.511,17.0]
[1673566289548,0.96,16.522,16.511,17.0]
[1673566290294,10.0,16.523,16.511,17.0]
[1673566290823,0.96,16.522,16.508,20.0]
[1673566291034,0.96,16.522,16.507,20.0]
[1673566291246,0.96,16.521,16.507,20.0]
[1673566291560,0.96,16.52,16.507,20.0]
[1673566291778,0.96,16.52,16.508,0.96]
[1673566291981,0.96,16.52,16.508,1.92]
[1673566292405,0.96,16.52,16.508,18.92]
[1673566294804,147.4503,16.524,16.508,18.92]
[1673566295014,102.0603,16.524,16.509,10.0]
[1673566295227,102.0603,16.524,16.51,1.92]
[1673566296181,167.265,16.528,16.51,1.92]
[1673566296182,121.885,16.528,16.51,146.78]
[1673566296384,108.0435,16.533,16.511,28.79719398]
[1673566296595,108.0435,16.533,16.512,20.96]
[1673566296821,108.0435,16.533,16.52,24.85]
[1673566297348,108.0435,16.533,16.521,1.92]
[1673566298083,108.0435,16.533,16.521,18.92]
[1673566303208,0.96,16.532,16.52,16.6]
[1673566303847,0.96,16.531,16.517,113.8341]
[1673566304070,0.96,16.531,16.518,20.0]
[1673566304401,0.96,16.53,16.518,20.0]
[1673566304589,0.96,16.53,16.513,159.72184658]
[1673566304590,46.34,16.53,16.516,20.0]
[1673566304795,0.96,16.529,16.516,20.0]
[1673566305204,55.37,16.531,16.514,20.0]
[1673566305420,1.92,16.53,16.514,20.0]
[1673566306388,45.37,16.531,16.515,11.92]
[1673566306598,55.37,16.532,16.516,20.0]
[1673566306831,55.37,16.532,16.517,1.92]
[1673566307008,55.37,16.532,16.517,18.92]
[1673566307216,55.37,16.532,16.518,20.0]
[1673566307436,55.37,16.532,16.519,17.0]
[1673566307630,1.92,16.531,16.519,17.0]
[1673566308575,108.0435,16.533,16.519,17.0]
[1673566308794,108.0435,16.533,16.52,1.92]
[1673566310379,45.35,16.538,16.52,18.56]
[1673566310592,45.35,16.538,16.521,10.0]
[1673566310794,152.2358,16.542,16.522,7.36741]
[1673566311009,106.8958,16.542,16.523,20.0]
[1673566311228,106.8958,16.542,16.524,128.1672]
[1673566311533,106.8958,16.542,16.53,16.64]
[1673566311737,2.0000001,16.543,16.531,1.92]
[1673566312160,2.0000001,16.543,16.531,18.92]
[1673566313725,2.0000001,16.543,16.531,17.0]
[1673566314153,2.0000001,16.543,16.532,1.92]
[1673566316791,0.96,16.542,16.531,17.0]
[1673566316987,1.92,16.542,16.53,16.64]
[1673566317200,1.92,16.542,16.528,51.88296475]
[1673566317732,45.35,16.541,16.528,51.88296475]
[1673566317926,10.0,16.541,16.525,48.82545468]
[1673566318141,1.92,16.54,16.526,20.0]
[1673566318670,47.27,16.54,16.526,20.0]
[1673566318886,10.0,16.539,16.526,20.0]
[1673566319084,55.35,16.541,16.526,20.0]
[1673566319294,1.92,16.54,16.527,1.92]
[1673566320161,10.0,16.541,16.527,1.92]
[1673566320561,159.1215,16.542,16.527,1.92]
[1673566320976,159.1215,16.542,16.527,11.92]
[1673566321182,159.1215,16.542,16.528,20.0]
[1673566321399,2.0000001,16.543,16.53,16.53]
[1673566321722,2.0000001,16.543,16.531,10.96]
[1673566321937,2.0000001,16.543,16.531,11.92]
[1673566322565,2.0000001,16.543,16.532,10.0]
[1673566322780,2.0000001,16.543,16.533,18.92]
[1673566325628,2.0000001,16.543,16.534,20.0]
[1673566325827,2.0000001,16.543,16.535,11.92]
[1673566326029,2.0000001,16.543,16.536,20.0]
[1673566326260,2.0000001,16.543,16.537,1.92]
[1673566326793,2.0000001,16.543,16.537,11.92]
[1673566326998,2.0000001,16.543,16.538,20.0]
[1673566327188,2.0000001,16.543,16.539,1.92]
[1673566328256,162.7724,16.555,16.539,80.80296475]
[1673566328470,10.0,16.554,16.539,70.80296475]
[1673566330870,10.0,16.554,16.539,123.869855]
[1673566331498,55.3,16.558,16.54,26.6]
[1673566331714,45.31,16.555,16.541,1.92]
[1673566331951,10.0,16.556,16.541,1.92]
[1673566332586,10.0,16.556,16.541,53.06689025]
[1673566332794,1.92,16.555,16.541,53.06689025]
[1673566333935,0.96,16.555,16.542,1.92]
[1673566334144,101.5527,16.56,16.543,10.0]
[1673566334354,101.5527,16.56,16.544,21.92]
[1673566334570,101.5527,16.56,16.544,74.98689025]
[1673566334781,101.5527,16.56,16.545,53.06689025]
[1673566335095,101.5527,16.56,16.546,21.92]
[1673566335298,101.5527,16.56,16.547,10.0]
[1673566335532,45.28,16.565,16.55,16.64]
[1673566335843,10.0,16.566,16.551,1.92]
[1673566336053,45.28,16.564,16.551,106.869855]
[1673566336241,45.28,16.565,16.552,53.06689025]
[1673566336452,45.28,16.565,16.553,1.92]
[1673566336688,45.28,16.565,16.553,18.92]
[1673566336892,45.28,16.565,16.554,53.06689025]
[1673566337517,45.28,16.565,16.555,17.0]
[1673566338470,45.28,16.565,16.554,53.06689025]
[1673566338683,10.96,16.564,16.554,53.06689025]
[1673566338875,10.0,16.563,16.554,53.06689025]
[1673566339089,55.29,16.563,16.554,53.06689025]
[1673566339295,10.96,16.562,16.554,53.06689025]
[1673566339711,0.96,16.562,16.554,53.06689025]
[1673566340133,55.29,16.563,16.554,53.06689025]
[1673566340349,10.0,16.563,16.554,53.06689025]
[1673566340789,10.0,16.564,16.554,53.06689025]
[1673566341330,1.92,16.563,16.554,53.06689025]
[1673566343003,10.0,16.564,16.554,53.06689025]
[1673566343211,55.28,16.566,16.554,53.06689025]
[1673566343425,10.0,16.566,16.554,53.06689025]
[1673566344472,55.28,16.566,16.554,53.06689025]
[1673566344678,0.96,16.565,16.554,53.06689025]
[1673566344892,0.96,16.564,16.554,53.06689025]
[1673566347081,0.96,16.564,16.555,17.0]
[1673566347725,10.0,16.565,16.555,17.0]
[1673566348980,10.0,16.565,16.555,70.06689025]
[1673566349940,10.0,16.565,16.555,17.0]
[1673566351511,119.9117,16.567,16.556,0.96]
[1673566351512,109.9117,16.567,16.556,0.96]
[1673566351844,109.9117,16.567,16.557,0.96]
[1673566352031,45.25,16.575,16.557,0.96]
[1673566352247,108.4651,16.573,16.557,29.75719398]
[1673566352460,108.4651,16.573,16.558,20.0]
[1673566352980,10.0,16.568,16.558,20.0]
[1673566353191,108.4651,16.573,16.558,31.79719398]
[1673566353394,108.4651,16.573,16.559,18.92]
[1673566353818,108.4651,16.573,16.559,30.71719398]
[1673566354782,108.4651,16.573,16.559,82.60015873]
[1673566358344,10.0,16.575,16.559,82.60015873]
[1673566358662,10.0,16.575,16.56,41.40918393]
[1673566358862,11.92,16.574,16.56,41.40918393]
[1673566359503,11.92,16.574,16.559,63.68015873]
[1673566360025,11.92,16.574,16.56,1.92]
[1673566360762,11.92,16.574,16.559,63.65917804]
[1673566360976,11.92,16.574,16.559,51.88296475]
[1673566361376,11.92,16.574,16.559,63.65917804]
[1673566362111,10.0,16.574,16.56,1.92]
[1673566362321,18.92,16.573,16.558,20.0]
[1673566362543,1.92,16.573,16.558,20.0]
[1673566362758,10.0,16.572,16.558,20.0]
[1673566362972,17.0,16.571,16.558,20.0]
[1673566363181,10.0,16.57,16.558,20.0]
[1673566363387,10.0,16.57,16.552,20.0]
[1673566363581,118.151,16.569,16.555,11.77621329]
[1673566363796,118.151,16.569,16.556,21.92]
[1673566364220,118.151,16.569,16.557,17.0]
[1673566364640,118.151,16.569,16.558,20.0]
[1673566364861,118.151,16.569,16.559,17.0]
[1673566366741,118.151,16.569,16.56,1.92]
[1673566367831,118.151,16.569,16.56,13.69621329]
[1673566368358,118.151,16.569,16.561,17.0]
[1673566368769,10.0,16.572,16.561,17.0]
[1673566370125,1.92,16.571,16.561,17.0]
[1673566370336,10.0,16.572,16.561,17.0]
[1673566371820,10.0,16.572,16.562,17.0]
[1673566372559,10.0,16.573,16.562,17.0]
[1673566372766,10.0,16.573,16.563,0.96]
[1673566372963,10.0,16.573,16.562,28.77621329]
[1673566373506,10.0,16.573,16.559,51.70963142]
[1673566373931,1.92,16.572,16.559,51.70963142]
[1673566375084,1.92,16.572,16.56,1.92]
[1673566375276,1.92,16.572,16.559,63.48584471]
[1673566377373,1.92,16.572,16.558,20.0]
[1673566377580,16.6,16.57,16.551,112.4705]
[1673566377807,154.4061,16.569,16.551,112.4705]
[1673566378145,199.6761,16.569,16.548,11.77621329]
[1673566378556,10.0,16.568,16.545,42.91380033]